fUSD/lending_fUSD_20250225
["ID","MTS","AMOUNT","RATE_DAILY","PERIOD"]
[354442798,1740499832634,-190.72,0.00033307,2]
[354442799,1740499832643,-692.6,0.00033341,2]
[354442800,1740499832654,-417.61,0.00033348,2]
[354442801,1740499832663,-1135.63,0.00033356,2]
[354442802,1740499832672,-254.13,0.00033371,2]
[354442803,1740499832681,-4248.3,0.0003339,2]
[354442804,1740499832689,-4624.54,0.00033597,2]
[354442805,1740499832698,-254.13,0.00033631,2]
[354442806,1740499832707,-194.08,0.00033684,5]
[354442807,1740499832716,-150.46,0.00033883,2]
[354442808,1740499832725,-254.13,0.0003389,2]
[354442809,1740499832735,-4188.47,0.00034,120]
[354442810,1740499832744,-1000.0,0.00034036,2]
[354442811,1740499832753,-4000.0,0.00034122,2]
[354442812,1740499832763,-254.13,0.0003415,2]
[354442813,1740499832772,-225.1950882,0.00034299,4]
[354442814,1740499832780,-373.9864,0.000344,2]
[354442815,1740499832789,-976.171,0.000344,2]
[354442816,1740499832798,-1708.2857,0.000344,2]
[354442817,1740499832810,-1225.8109,0.000344,2]
[354442818,1740499832819,-5220.5007,0.000344,2]
[354442819,1740499832828,-1510.7848,0.000344,2]
[354442820,1740499832837,-254.13,0.00034409,2]
[354442821,1740499832847,-2235.86,0.000345,120]
[354442822,1740499832856,-3937.05,0.000345,120]
[354442824,1740499832865,-15000.0,0.000345,120]
[354442826,1740499832875,-15000.0,0.00034505,120]
[354442827,1740499832885,-15000.0,0.0003451,120]
[354442829,1740499832894,-10361.99,0.00034515,120]
[354442831,1740499832904,-327.0,0.00034521,2]
[354442833,1740499832913,-432.3128609,0.00034563,2]
[354442835,1740499832923,-1000.0,0.00034637,2]
[354442837,1740499832933,-254.13,0.00034668,2]
[354442839,1740499832943,-1000.0,0.00034675,2]
[354442841,1740499832952,-1000.0,0.00034681,2]
[354442843,1740499832962,-1000.0,0.00034685,2]
[354442845,1740499832972,-1000.0,0.00034688,2]
[354442847,1740499832981,-1000.0,0.00034706,2]
[354442849,1740499832991,-150.0,0.00034706,2]
[354442851,1740499833000,-150.0,0.00034712,2]
[354442853,1740499833010,-150.0,0.00034713,2]
[354442855,1740499833019,-150.0,0.00034716,2]
[354442857,1740499833030,-1000.0,0.00034717,2]
[354442859,1740499833041,-150.0,0.00034717,2]
[354442861,1740499833051,-150.0,0.00034719,2]
[354442863,1740499833063,-150.0,0.00034721,2]
[354442864,1740499833086,-150.0,0.00034727,2]
[354442866,1740499833096,-150.0,0.00034728,2]
[354442868,1740499833106,-150.0,0.00034729,2]
[354442870,1740499833115,-150.0,0.00034732,2]
[354442872,1740499833126,-150.0,0.00034735,2]
[354442874,1740499833136,-1000.0,0.00034737,2]
[354442876,1740499833146,-150.0,0.00034741,2]
[354442878,1740499833155,-150.0,0.00034743,2]
[354442880,1740499833165,-150.0,0.00034743,2]
[354442882,1740499833174,-1000.0,0.00034745,2]
[354442884,1740499833184,-150.0,0.00034745,2]
[354442886,1740499833193,-150.0,0.00034749,2]
[354442888,1740499833202,-150.0,0.00034754,2]
[354442889,1740499833212,-150.0,0.00034755,2]
[354442890,1740499833222,-1000.0,0.00034756,2]
[354442891,1740499833232,-2125.4747,0.00034757,30]
[354442892,1740499833242,-150.0,0.00034757,2]
[354442893,1740499833252,-150.0,0.00034757,2]
[354442894,1740499833262,-150.0,0.00034758,2]
[354442895,1740499833273,-1000.0,0.00034759,2]
[354442896,1740499833283,-150.0,0.00034759,2]
[354442897,1740499833292,-200.0,0.00034764,30]
[354442898,1740499833302,-150.0,0.00034769,2]
[354442899,1740499833316,-2125.4747,0.00034771,30]
[354442900,1740499833327,-150.0,0.00034772,2]
[354442901,1740499833337,-150.0,0.00034773,2]
[354442902,1740499833348,-150.0,0.00034774,2]
[354442903,1740499833358,-2588.32733505,0.00034777,30]
[354442904,1740499833368,-736.9654706,0.00034779,30]
[354442905,1740499833378,-150.0,0.0003478,2]
[354442906,1740499833387,-150.0,0.0003478,2]
[354442907,1740499833397,-150.0,0.00034781,2]
[354442908,1740499833408,-1000.0,0.00034781,2]
[354442909,1740499833417,-150.0,0.00034782,2]
[354442910,1740499833427,-4940.24871342,0.0003479,2]
[354442911,1740499833437,-161.48457363,0.0003479,2]
[354442912,1740499833447,-22406.4081,0.0003479,2]
[354442913,1740499833456,-3363.0527,0.0003479,2]
[354442914,1740499833466,-862.16,0.0003479,2]
[354442915,1740499833476,-545.4791,0.0003479,2]
[354442916,1740499833487,-1258.7466,0.0003479,2]
[354442917,1740499833500,-279.4522,0.0003479,2]
[354442918,1740499833510,-1000.0,0.0003479,2]
[354442919,1740499833520,-150.0,0.00034792,2]
[354442920,1740499833531,-150.0,0.00034796,2]
[354442921,1740499833541,-150.0,0.00034797,2]
[354442922,1740499833551,-151.0,0.000348,7]
[354442923,1740499833564,-151.0,0.000348,7]
[354442924,1740499833575,-150.0,0.000348,2]
[354442925,1740499833585,-1000.0,0.000348,7]
[354442926,1740499833595,-500.0,0.000348,12]
[354442927,1740499833605,-889.95732048,0.00034801,2]
[354442928,1740499833616,-1000.0,0.00034802,2]
[354442929,1740499833628,-150.0,0.00034802,2]
[354442930,1740499833639,-150.0,0.00034804,2]
[354442931,1740499833650,-2588.32733505,0.00034807,30]
[354442932,1740499833661,-150.0,0.00034808,2]
[354442933,1740499833672,-216.55512551,0.00034809,7]
[354442934,1740499833683,-150.0,0.0003481,2]
[354442935,1740499833693,-2125.4747,0.0003481,30]
[354442936,1740499833703,-150.0,0.00034811,2]
[354442937,1740499833713,-150.0,0.00034814,2]
[354442938,1740499833724,-1000.0,0.00034818,2]
[354442939,1740499833734,-150.0,0.00034819,2]
[354442940,1740499833744,-736.9654706,0.0003482,30]
[354442941,1740499833755,-150.0,0.00034821,2]
[354442942,1740499833765,-150.0,0.00034821,2]
[354442943,1740499833776,-150.0,0.00034822,2]
[354442944,1740499833786,-150.0,0.00034828,2]
[354442945,1740499833795,-1000.0,0.00034837,2]
[354442946,1740499833806,-736.9654706,0.00034842,30]
[354442947,1740499833818,-150.0,0.00034847,2]
[354442948,1740499833828,-1000.0,0.00034849,2]
[354442949,1740499833838,-2588.32733505,0.00034852,30]
[354442950,1740499833848,-1000.0,0.00034854,2]
[354442951,1740499833858,-150.0,0.00034857,2]
[354442952,1740499833869,-150.0,0.00034857,2]
[354442953,1740499833880,-150.0,0.00034857,2]
[354442954,1740499833891,-150.0,0.00034862,2]
[354442955,1740499833901,-150.0,0.00034863,2]
[354442956,1740499833912,-150.0,0.00034864,2]
[354442957,1740499833922,-150.0,0.00034865,2]
[354442958,1740499833933,-150.0,0.00034867,2]
[354442959,1740499833943,-150.0,0.0003487,2]
[354442960,1740499833954,-736.9654706,0.00034872,30]
[354442961,1740499833964,-150.0,0.00034875,2]
[354442962,1740499833974,-150.0,0.0003488,2]
[354442963,1740499833985,-150.0,0.00034883,2]
[354442964,1740499833995,-1000.0,0.00034885,2]
[354442965,1740499834004,-150.0,0.00034885,2]
[354442966,1740499834014,-150.0,0.0003489,2]
[354442967,1740499834024,-287.56783496,0.0003489,7]
[354442968,1740499834035,-500.0,0.0003489,2]
[354442969,1740499834044,-26132.54363322,0.0003489,2]
[354442970,1740499834058,-254.59240311,0.0003489,2]
[354442971,1740499834075,-24552.71822157,0.0003489,2]
[354442988,1740499837922,-11762.6587421,0.0003489,2]
[354442989,1740499837931,-6515.5522,0.0003489,2]
[354442990,1740499837941,-150.0,0.00034896,2]
[354442991,1740499837951,-150.0,0.00034896,2]
[354442992,1740499837960,-150.0,0.00034897,2]
[354442993,1740499837970,-150.0,0.00034898,2]
[354442994,1740499837979,-1358.5290579,0.000349,2]
[354442995,1740499837991,-5292.5279421,0.000349,2]
[354442996,1740499838000,-1644.4037,0.000349,2]
[354442997,1740499838009,-6628.0683579,0.000349,2]
[354442998,1740499838022,-5942.3695421,0.000349,2]
[354442999,1740499838031,-836.902,0.000349,2]
[354443000,1740499838040,-151.0,0.000349,7]
[354443001,1740499838049,-151.0,0.000349,7]
[354443002,1740499838058,-151.0,0.000349,7]
[354443003,1740499838070,-152.129268,0.000349,7]
[354443004,1740499838079,-1000.0,0.000349,2]
[354443005,1740499838088,-267.30735582,0.000349,7]
[354443006,1740499838099,-235.19542125,0.000349,2]
[354443007,1740499838108,-172.25291595,0.000349,7]
[354443008,1740499838118,-3271.76899688,0.000349,3]
[354443009,1740499838129,-4228.23100312,0.000349,3]
[354443010,1740499838139,-1000.0,0.000349,12]
[354443011,1740499838148,-286.62124962,0.00034901,2]
[354443012,1740499838158,-2125.4747,0.00034901,30]
[354443013,1740499838167,-150.0,0.00034902,2]
[354443014,1740499838176,-4940.24871342,0.00034911,2]
[354443016,1740499838185,-150.0,0.00034914,2]
[354443017,1740499838195,-150.0,0.00034916,2]
[354443019,1740499838204,-150.0,0.00034918,2]
[354443021,1740499838214,-150.0,0.00034919,2]
[354443023,1740499838223,-254.13,0.00034928,2]
[354443025,1740499838232,-150.0,0.00034929,2]
[354443027,1740499838242,-150.0,0.0003493,2]
[354443029,1740499838252,-1000.0,0.0003493,2]
[354443031,1740499838262,-2588.32733505,0.00034931,30]
[354443033,1740499838272,-150.0,0.00034932,2]
[354443035,1740499838281,-627.65726841,0.00034935,2]
[354443037,1740499838290,-150.0,0.00034937,2]
[354443039,1740499838300,-1000.0,0.00034938,2]
[354443041,1740499838309,-150.0,0.00034942,2]
[354443043,1740499838321,-150.0,0.00034947,2]
[354443045,1740499838330,-150.0,0.00034948,2]
[354443047,1740499838339,-150.0,0.00034948,2]
[354443049,1740499838348,-150.0,0.0003495,2]
[354443051,1740499838358,-150.0,0.00034951,2]
[354443052,1740499838367,-150.0,0.00034956,2]
[354443054,1740499838377,-150.0,0.00034964,2]
[354443056,1740499838386,-150.0,0.00034964,2]
[354443058,1740499838395,-150.0,0.00034965,2]
[354443060,1740499838404,-150.0,0.00034966,2]
[354443062,1740499838413,-150.0,0.0003497,2]
[354443064,1740499838422,-182.28331995,0.00034973,5]
[354443066,1740499838432,-150.0,0.00034977,2]
[354443067,1740499838442,-295.75929066,0.0003498,3]
[354443068,1740499838451,-150.0,0.00034982,2]
[354443069,1740499838461,-150.0,0.00034985,2]
[354443070,1740499838470,-295.75929066,0.0003499,3]
[354443071,1740499838479,-172.95868,0.00034992,19]
[354443072,1740499838490,-300.0,0.00034999,10]
[354443073,1740499838501,-999.0,0.00034999,120]
[354443074,1740499838511,-1667.0,0.00035,5]
[354443075,1740499838520,-1000.0,0.00035,2]
[354443076,1740499838532,-1000.0,0.00035,2]
[354443077,1740499838542,-819.313174,0.00035,2]
[354443078,1740499838551,-151.0,0.00035,7]
[354443079,1740499838561,-151.0,0.00035,7]
[354443080,1740499838574,-151.0,0.00035,7]
[354443081,1740499838583,-279.134024,0.00035,7]
[354443082,1740499838593,-151.0,0.00035,7]
[354443083,1740499838603,-151.0,0.00035,7]
[354443084,1740499838612,-151.0,0.00035,7]
[354443085,1740499838621,-151.0,0.00035,7]
[354443086,1740499838630,-151.0,0.00035,7]
[354443087,1740499838640,-209.713875,0.00035,7]
[354443088,1740499838649,-162.095462,0.00035,7]
[354443089,1740499838659,-162.095462,0.00035,7]
[354443090,1740499838669,-162.095462,0.00035,7]
[354443091,1740499838678,-151.0,0.00035,7]
[354443092,1740499838688,-151.0,0.00035,7]
[354443093,1740499838698,-151.0,0.00035,7]
[354443094,1740499838708,-151.0,0.00035,7]
[354443095,1740499838717,-151.0,0.00035,7]
[354443096,1740499838727,-151.0,0.00035,7]
[354443097,1740499838737,-322.793032,0.00035,7]
[354443098,1740499838747,-322.793032,0.00035,7]
[354443099,1740499838756,-322.793032,0.00035,7]
[354443100,1740499838766,-322.793032,0.00035,7]
[354443101,1740499838775,-322.793032,0.00035,7]
[354443102,1740499838785,-322.793032,0.00035,7]
[354443103,1740499838794,-151.0,0.00035,7]
[354443104,1740499838804,-151.0,0.00035,7]
[354443105,1740499838814,-151.0,0.00035,7]
[354443106,1740499838827,-151.0,0.00035,7]
[354443107,1740499838836,-151.0,0.00035,7]
[354443108,1740499838846,-151.0,0.00035,7]
[354443109,1740499838855,-151.0,0.00035,7]
[354443110,1740499838865,-151.0,0.00035,7]
[354443111,1740499838874,-151.0,0.00035,7]
[354443112,1740499838884,-151.0,0.00035,7]
[354443113,1740499838893,-151.0,0.00035,7]
[354443114,1740499838902,-151.0,0.00035,7]
[354443115,1740499838912,-151.0,0.00035,7]
[354443116,1740499838921,-151.0,0.00035,7]
[354443117,1740499838930,-151.0,0.00035,7]
[354443118,1740499838940,-151.0,0.00035,7]
[354443119,1740499838949,-151.0,0.00035,7]
[354443120,1740499838959,-151.0,0.00035,7]
[354443121,1740499838968,-151.0,0.00035,7]
[354443122,1740499838978,-151.0,0.00035,7]
[354443123,1740499838988,-151.0,0.00035,7]
[354443124,1740499838997,-151.0,0.00035,7]
[354443125,1740499839007,-151.0,0.00035,7]
[354443126,1740499839017,-181.941246,0.00035,7]
[354443127,1740499839026,-151.0,0.00035,7]
[354443128,1740499839035,-151.0,0.00035,7]
[354443129,1740499839044,-151.0,0.00035,7]
[354443130,1740499839054,-227.560188,0.00035,7]
[354443131,1740499839063,-151.0,0.00035,7]
[354443132,1740499839075,-151.0,0.00035,7]
[354443133,1740499839084,-151.0,0.00035,5]
[354443134,1740499839093,-151.0,0.00035,7]
[354443135,1740499839103,-231.555127,0.00035,7]
[354443136,1740499839112,-151.0,0.00035,7]
[354443137,1740499839122,-151.0,0.00035,7]
[354443138,1740499839131,-242.615221,0.00035,7]
[354443139,1740499839140,-151.0,0.00035,7]
[354443140,1740499839150,-210.6,0.00035,7]
[354443141,1740499839159,-151.0,0.00035,7]
[354443142,1740499839168,-210.6,0.00035,7]
[354443143,1740499839177,-151.0,0.00035,7]
[354443144,1740499839187,-184.386841,0.00035,7]
[354443145,1740499839197,-151.0,0.00035,7]
[354443146,1740499839206,-294.027425,0.00035,7]
[354443147,1740499839215,-151.0,0.00035,7]
[354443148,1740499839225,-294.027425,0.00035,7]
[354443149,1740499839234,-151.0,0.00035,7]
[354443150,1740499839243,-153.679213,0.00035,7]
[354443151,1740499839253,-151.414743,0.00035,7]
[354443152,1740499839262,-785.8661752,0.00035008,2]
[354443153,1740499839271,-4940.24871342,0.00035032,2]
[354443154,1740499839280,-500.0,0.00035073,5]
[354443155,1740499839289,-150.0,0.00035113,2]
[354443156,1740499839299,-4940.24871342,0.00035153,2]
[354443157,1740499839309,-1607.95,0.00035158,2]
[354443158,1740499839321,-254.13,0.00035187,2]
[354443159,1740499839331,-150.0,0.00035191,2]
[354443160,1740499839341,-4940.24871342,0.00035274,2]
[354443161,1740499839350,-150.46,0.00035281,2]
[354443162,1740499839359,-151.0,0.000353,7]
[354443163,1740499839368,-227.129629,0.000353,7]
[354443164,1740499839377,-151.0,0.000353,7]
[354443165,1740499839386,-151.0,0.000353,7]
[354443166,1740499839395,-151.0,0.000353,7]
[354443167,1740499839404,-151.0,0.000353,7]
[354443168,1740499839413,-151.0,0.000353,7]
[354443169,1740499839422,-151.0,0.000353,7]
[354443170,1740499839430,-151.0,0.000353,7]
[354443171,1740499839439,-242.615221,0.000353,7]
[354443172,1740499839448,-151.0,0.000353,7]
[354443173,1740499839457,-210.6,0.000353,7]
[354443174,1740499839466,-151.0,0.000353,7]
[354443175,1740499839476,-210.6,0.000353,7]
[354443176,1740499839485,-151.0,0.000353,7]
[354443177,1740499839495,-151.0,0.000353,7]
[354443178,1740499839505,-294.027425,0.000353,7]
[354443179,1740499839516,-151.0,0.000353,7]
[354443180,1740499839527,-294.027425,0.000353,7]
[354443181,1740499839537,-151.0,0.000353,7]
[354443182,1740499839546,-309.17689079,0.000353,2]
[354443183,1740499839557,-1000.0,0.00035321,2]
[354443184,1740499839567,-1000.0,0.00035327,2]
[354443185,1740499839582,-196.572836,0.0003534,7]
[354443186,1740499839592,-151.0,0.0003534,7]
[354443187,1740499839601,-4940.24871342,0.00035396,2]
[354443188,1740499839612,-267.30735578,0.000354,8]
[354443189,1740499839622,-235.19542122,0.00035421,2]
[354443190,1740499839632,-1607.95,0.00035427,2]
[354443191,1740499839641,-254.13,0.00035446,2]
[354443192,1740499839650,-150.0,0.0003547,2]
[354443194,1740499839659,-150.0,0.00035484,2]
[354443195,1740499839668,-151.0,0.000355,7]
[354443196,1740499839677,-151.0,0.000355,7]
[354443197,1740499839686,-162.095462,0.000355,7]
[354443198,1740499839696,-151.0,0.000355,7]
[354443199,1740499839705,-151.0,0.000355,7]
[354443200,1740499839715,-322.793032,0.000355,7]
[354443201,1740499839724,-322.793032,0.000355,7]
[354443202,1740499839733,-151.0,0.000355,7]
[354443203,1740499839742,-151.0,0.000355,7]
[354443204,1740499839751,-184.279084,0.000355,7]
[354443205,1740499839762,-151.0,0.000355,7]
[354443206,1740499839771,-204.232926,0.000355,7]
[354443207,1740499839780,-151.0,0.000355,7]
[354443208,1740499839789,-151.0,0.000355,7]
[354443209,1740499839800,-151.0,0.000355,7]
[354443210,1740499839809,-151.0,0.000355,7]
[354443211,1740499839820,-284.671707,0.000355,7]
[354443212,1740499839831,-151.0,0.000355,7]
[354443213,1740499839840,-151.0,0.000355,7]
[354443214,1740499839849,-151.0,0.000355,7]
[354443215,1740499839858,-151.0,0.000355,7]
[354443216,1740499839867,-151.0,0.000355,7]
[354443217,1740499839876,-151.0,0.000355,7]
[354443218,1740499839885,-151.0,0.000355,7]
[354443219,1740499839894,-242.615221,0.000355,7]
[354443220,1740499839904,-151.0,0.000355,7]
[354443221,1740499839913,-210.6,0.000355,7]
[354443222,1740499839923,-151.0,0.000355,7]
[354443223,1740499839932,-210.6,0.000355,7]
[354443224,1740499839941,-168.212488,0.000355,7]
[354443225,1740499839951,-151.0,0.000355,7]
[354443226,1740499839962,-294.027425,0.000355,7]
[354443227,1740499839973,-151.0,0.000355,7]
[354443228,1740499839983,-294.027425,0.000355,7]
[354443229,1740499839993,-151.0,0.000355,7]
[354443230,1740499840003,-150.0,0.00035504,2]
[354443231,1740499840013,-4940.24871342,0.00035517,2]
[354443232,1740499840023,-1000.0,0.00035538,2]
[354443233,1740499840032,-417.61,0.00035612,2]
[354443234,1740499840042,-4940.24871342,0.00035638,2]
[354443235,1740499840051,-314.4227703,0.00035645,7]
[354443236,1740499840061,-1607.95,0.00035696,2]
[354443237,1740499840074,-254.13,0.00035706,2]
[354443238,1740499840083,-4940.24871342,0.00035759,2]
[354443239,1740499840092,-4912.54876414,0.0003577,2]
[354443240,1740499840102,-1600.0,0.000358,13]
[354443241,1740499840111,-150.0,0.0003581,2]
[354443242,1740499840120,-150.0,0.00035836,2]
[354443243,1740499840130,-4940.24871342,0.0003588,2]
[354443244,1740499840139,-4912.54876414,0.0003588,2]
[354443245,1740499840149,-150.0,0.0003589,2]
[354443246,1740499840159,-150.0,0.0003589,2]
[354443247,1740499840169,-151.26,0.0003589,2]
[354443248,1740499840179,-439.49,0.0003589,2]
[354443249,1740499840188,-267.30735578,0.000359,8]
[354443250,1740499840197,-172.25291595,0.000359,8]
[354443251,1740499840206,-925.0,0.000359,2]
[354443252,1740499840215,-2100.0,0.000359,13]
[354443253,1740499840225,-735.0,0.000359,2]
[354443254,1740499840235,-748.0,0.000359,2]
[354443255,1740499840245,-235.19542122,0.00035942,2]
[354443256,1740499840255,-1607.95,0.00035965,2]
[354443257,1740499840264,-254.13,0.00035965,2]
[354443258,1740499840273,-151.0,0.0003598,7]
[354443259,1740499840283,-151.0,0.0003598,7]
[354443260,1740499840293,-151.0,0.0003598,7]
[354443261,1740499840302,-151.0,0.0003598,7]
[354443262,1740499840311,-151.0,0.00036,7]
[354443263,1740499840322,-151.0,0.00036,7]
[354443264,1740499840331,-151.0,0.00036,7]
[354443265,1740499840341,-162.095462,0.00036,7]
[354443266,1740499840350,-162.095462,0.00036,7]
[354443267,1740499840359,-162.095462,0.00036,7]
[354443268,1740499840370,-151.0,0.00036,7]
[354443269,1740499840379,-151.0,0.00036,7]
[354443270,1740499840389,-151.0,0.00036,7]
[354443271,1740499840399,-151.0,0.00036,7]
[354443272,1740499840409,-225.027886,0.00036,7]
[354443273,1740499840419,-225.027886,0.00036,7]
[354443274,1740499840429,-322.793032,0.00036,7]
[354443275,1740499840438,-322.793032,0.00036,7]
[354443276,1740499840448,-322.793032,0.00036,7]
[354443277,1740499840457,-322.793032,0.00036,7]
[354443278,1740499840467,-151.0,0.00036,7]
[354443279,1740499840476,-185.29249,0.00036,7]
[354443280,1740499840486,-151.0,0.00036,7]
[354443281,1740499840499,-151.0,0.00036,7]
[354443282,1740499840508,-201.5306,0.00036,7]
[354443283,1740499840518,-151.0,0.00036,7]
[354443284,1740499840527,-151.0,0.00036,7]
[354443285,1740499840538,-151.0,0.00036,7]
[354443286,1740499840547,-262.948743,0.00036,7]
[354443287,1740499840556,-151.0,0.00036,7]
[354443288,1740499840567,-151.0,0.00036,7]
[354443289,1740499840578,-151.0,0.00036,7]
[354443290,1740499840589,-151.0,0.00036,7]
[354443291,1740499840598,-151.0,0.00036,7]
[354443292,1740499840608,-151.0,0.00036,7]
[354443293,1740499840617,-151.0,0.00036,7]
[354443294,1740499840627,-151.0,0.00036,7]
[354443295,1740499840637,-151.0,0.00036,7]
[354443296,1740499840646,-151.0,0.00036,7]
[354443297,1740499840656,-151.0,0.00036,7]
[354443298,1740499840666,-151.0,0.00036,7]
[354443299,1740499840675,-151.0,0.00036,7]
[354443300,1740499840685,-151.0,0.00036,7]
[354443301,1740499840695,-151.0,0.00036,7]
[354443302,1740499840704,-242.615221,0.00036,7]
[354443303,1740499840714,-242.615221,0.00036,7]
[354443304,1740499840723,-151.0,0.00036,7]
[354443305,1740499840733,-151.0,0.00036,7]
[354443306,1740499840744,-210.6,0.00036,7]
[354443307,1740499840753,-210.6,0.00036,7]
[354443308,1740499840764,-151.0,0.00036,7]
[354443309,1740499840774,-151.0,0.00036,7]
[354443310,1740499840784,-210.6,0.00036,7]
[354443311,1740499840794,-210.6,0.00036,7]
[354443312,1740499840924,-151.0,0.00036,7]
[354443313,1740499840935,-151.0,0.00036,7]
[354443314,1740499840945,-294.027425,0.00036,7]
[354443315,1740499840955,-294.027425,0.00036,7]
[354443316,1740499840965,-151.0,0.00036,7]
[354443317,1740499840974,-294.027425,0.00036,7]
[354443318,1740499840984,-151.0,0.00036,7]
[354443319,1740499840994,-294.027425,0.00036,7]
[354443320,1740499841004,-151.0,0.00036,7]
[354443321,1740499841014,-151.0,0.00036,7]
[354443322,1740499841024,-151.0,0.00036,7]
[354443323,1740499841033,-151.0,0.00036,7]
[354443324,1740499841043,-151.0,0.00036,7]
[354443325,1740499841054,-151.0,0.00036,7]
[354443326,1740499841063,-955.299464,0.00036,7]
[354443327,1740499841079,-955.299464,0.00036,7]
[354443328,1740499841089,-289.663,0.00036176,2]
[354443329,1740499841098,-1010.0,0.00036176,2]
[354443330,1740499841108,-3921.0,0.00036176,2]
[354443331,1740499841118,-37.05230383,0.00036179,2]
[354443332,1740499841236,-112.94769617,0.00036179,2]
[354443333,1740499841248,-254.13,0.00036224,2]
[354443334,1740499841258,-1607.95,0.00036234,2]
[354443335,1740499841268,-329.0,0.00036247,2]
[354443336,1740499841278,-267.30735578,0.000364,9]
[354443337,1740499841287,-235.19542122,0.00036464,2]
[354443338,1740499841297,-254.13,0.00036484,2]
[354443339,1740499841308,-150.0,0.00036487,30]
[354443340,1740499841318,-672.49452683,0.00036487,30]
[354443341,1740499841334,-398.05575565,0.00036487,30]
[354443342,1740499841343,-151.0,0.000365,7]
[354443343,1740499841353,-162.095462,0.000365,7]
[354443344,1740499841363,-162.095462,0.000365,7]
[354443346,1740499841373,-151.0,0.000365,7]
[354443348,1740499841382,-248.75075,0.000365,7]
[354443350,1740499841391,-225.027886,0.000365,7]
[354443352,1740499841401,-322.793032,0.000365,7]
[354443354,1740499841410,-322.793032,0.000365,7]
[354443355,1740499841420,-151.0,0.000365,7]
[354443357,1740499841431,-151.0,0.000365,7]
[354443359,1740499841440,-274.874151,0.000365,7]
[354443361,1740499841450,-151.0,0.000365,7]
[354443363,1740499841459,-242.194886,0.000365,7]
[354443364,1740499841469,-151.0,0.000365,7]
[354443366,1740499841479,-254.406149,0.000365,7]
[354443368,1740499841488,-151.0,0.000365,7]
[354443370,1740499841503,-242.615221,0.000365,7]
[354443372,1740499841513,-210.6,0.000365,7]
[354443374,1740499841523,-151.0,0.000365,7]
[354443376,1740499841534,-210.6,0.000365,7]
[354443378,1740499841543,-151.0,0.000365,7]
[354443380,1740499841553,-40.33321335,0.000365,7]
[354443382,1740499841565,-253.69421165,0.000365,7]
[354443384,1740499841579,-151.0,0.000365,7]
[354443386,1740499841590,-294.027425,0.000365,7]
[354443388,1740499841601,-151.0,0.000365,7]
[354443390,1740499841610,-151.0,0.000365,7]
[354443392,1740499841619,-151.0,0.000365,7]
[354443394,1740499841628,-151.0,0.000365,7]
[354443396,1740499841637,-955.299464,0.000365,7]